[Event "44th Chess Olympiad Open 2022"]
[Site "Chennai"]
[Date "2022.08.02"]
[Round "5.61"]
[White "Adu-Poku, Kwabena"]
[Black "Lim, Zhuo Ren"]
[Result "0-1"]
[WhiteElo "1974"]
[BlackElo "2318"]
[Annotator "RC"]
[PlyCount "74"]
[EventDate "2022.??.??"]
[TimeControl "60"]

1. d4 {[%emt 0:00:05]} Nf6 {[%emt 0:00:14]} 2. c4 {[%emt 0:00:22]} e6 {[%emt 0:
00:00]} 3. Nf3 {[%emt 0:00:33]} d5 {[%emt 0:00:31]} 4. Nc3 {[%emt 0:01:00]}
dxc4 {[%emt 0:00:58]} 5. e4 {[%emt 0:01:22]} b5 {[%emt 0:00:32]} 6. e5 {
[%emt 0:01:08]} Nd5 {[%emt 0:00:16]} 7. Nxb5 {[%emt 0:00:40]} Nb6 {[%emt 0:00:
00]} 8. Be2 {[%emt 0:00:44]} Nc6 {[%emt 0:00:31]} 9. O-O {[%emt 0:00:26]} Be7 {
[%emt 0:00:35]} 10. Be3 {[%emt 0:01:39]} O-O {[%emt 0:00:40]} 11. Qc1 {[%emt 0:
00:00]} Rb8 {[%emt 0:00:59]} 12. Nc3 {[%emt 0:04:20]} Bb7 {[%emt 0:01:52]} 13.
Rd1 {[%emt 0:01:20]} Nb4 {[%emt 0:07:27]} 14. d5 {[%emt 0:04:07]} N4xd5 {
[%emt 0:04:13]} 15. Bxb6 {[%emt 0:01:40]} cxb6 {[%emt 0:04:58]} 16. Bxc4 {
[%emt 0:00:16]} Rc8 {[%emt 0:00:22]} 17. Bxd5 {[%emt 0:04:22]} Bxd5 {[%emt 0:
00:00]} 18. Qe3 {[%emt 0:02:56]} Rc5 {[%emt 0:03:21]} 19. b4 {[%emt 0:08:08]}
Rc4 {[%emt 0:01:36]} 20. a3 {[%emt 0:01:18]} a5 {[%emt 0:03:53]} 21. Nxd5 {
[%emt 0:07:10]} exd5 {[%emt 0:00:02]} 22. bxa5 {[%emt 0:00:14]} bxa5 {[%emt 0:
00:00]} 23. Qd3 {[%emt 0:00:29]} Qc7 {[%emt 0:01:07]} 24. Qxd5 {[%emt 0:12:29]}
Rd8 {[%emt 0:00:18]} 25. Qb5 {[%emt 0:00:12]} Rxd1+ {[%emt 0:00:49]} 26. Rxd1 {
[%emt 0:00:07]} Rc1 {[%emt 0:04:59]} 27. Rf1 {[%emt 0:21:32]} Rxf1+ {[%emt 0:
00:00]} 28. Kxf1 {[%emt 0:00:13]} Qc1+ {[%emt 0:00:26]} 29. Ke2 {[%emt 0:08:17]
} Qxa3 {[%emt 0:00:29]} 30. e6 {[%emt 0:12:12]} Qa2+ {[%emt 0:00:19]} 31. Kd3 {
[%emt 0:00:30]} fxe6 {[%emt 0:01:33]} 32. Ne5 {[%emt 0:03:06]} Bf8 {[%emt 0:00:
00]} 33. Qd7 {[%emt 0:01:52]} Qb1+ {[%emt 0:01:16]} 34. Ke3 {[%emt 0:00:40]}
Qe1+ {[%emt 0:01:07]} 35. Kd4 {[%emt 0:00:30]} Qxf2+ {[%emt 0:00:47]} 36. Kd3 {
[%emt 0:00:12]} Qf5+ {[%emt 0:00:20]} 37. Kd4 {[%emt 0:00:14]} Qf4+ {[%emt 0:
00:00]} 0-1

[Event "44th Chess Olympiad Open 2022"]
[Site "Chennai"]
[Date "2022.08.02"]
[Round "5.61"]
[White "Fomevor, Cephas Clinton"]
[Black "Tan, Jun Ying"]
[Result "0-1"]
[WhiteElo "1830"]
[BlackElo "2191"]
[Annotator "NA RC"]
[PlyCount "86"]
[EventDate "2022.??.??"]
[TimeControl "60"]

1. c4 {[%emt 0:00:02]} c5 {[%emt 0:00:21]} 2. Nf3 {[%emt 0:00:26]} Nf6 {
[%emt 0:00:24]} 3. Nc3 {[%emt 0:00:52]} b6 {[%emt 0:00:46]} 4. g3 {[%emt 0:00:
00]} Bb7 {[%emt 0:00:11]} 5. Bg2 {[%emt 0:00:08]} e6 {[%emt 0:00:07]} 6. O-O {
[%emt 0:01:56]} Be7 {[%emt 0:00:04]} 7. d4 {[%emt 0:01:17]} cxd4 {[%emt 0:00:
00]} 8. Nxd4 {[%emt 0:00:18]} Bxg2 {[%emt 0:03:38]} 9. Kxg2 {[%emt 0:00:02]}
Qc8 {[%emt 0:00:25]} 10. b3 {[%emt 0:02:17]} O-O {[%emt 0:01:02]} 11. Bb2 {
[%emt 0:02:56]} Qb7+ {[%emt 0:02:16]} 12. f3 {[%emt 0:03:59]} a6 {[%emt 0:00:
00]} 13. e4 {[%emt 0:01:38]} Nc6 {[%emt 0:00:17]} 14. Re1 {[%emt 0:01:04]} d6 {
[%emt 0:05:22]} 15. Rc1 {[%emt 0:04:52]} Rfd8 {[%emt 0:04:12]} 16. Nxc6 {
[%emt 0:01:31]} Qxc6 {[%emt 0:00:04]} 17. Qe2 {[%emt 0:01:29]} Qb7 {[%emt 0:00:
00]} 18. Red1 {[%emt 0:01:56]} Rab8 {[%emt 0:16:27]} 19. Rc2 {[%emt 0:07:49]}
b5 {[%emt 0:01:29]} 20. Rcd2 {[%emt 0:01:38]} Rdc8 {[%emt 0:07:52]} 21. cxb5 {
[%emt 0:04:52]} axb5 {[%emt 0:00:07]} 22. h3 {[%emt 0:09:40]} b4 {[%emt 0:00:
00]} 23. Na4 {[%emt 0:03:31]} e5 {[%emt 0:00:30]} 24. Ba1 {[%emt 0:04:17]} Ra8
{[%emt 0:04:23]} 25. Qf2 {[%emt 0:04:10]} Ra6 {[%emt 0:04:00]} 26. Rc2 {
[%emt 0:02:39]} Rxc2 {[%emt 0:07:14]} 27. Qxc2 {[%emt 0:00:16]} Rc6 {[%emt 0:
00:00]} 28. Qd3 {[%emt 0:09:25]} Qc7 {[%emt 0:06:03]} 29. Rd2 {[%emt 0:02:09]}
Nh5 {[%emt 0:00:48]} 30. Kh2 {[%emt 0:03:18]} Bg5 {[%emt 0:01:36]} 31. Rf2 {
[%emt 0:04:18]} h6 {[%emt 0:01:59]} 32. h4 {[%emt 0:07:21]} Be7 {[%emt 0:08:47]
} 33. Bb2 {[%emt 0:04:36]} Qa7 {[%emt 0:09:54]} 34. Rc2 {[%emt 0:03:03]} Kh7 {
[%emt 0:02:50]} 35. Bc1 {[%emt 0:02:09]} Rxc2+ {[%emt 0:04:15]} 36. Qxc2 {
[%emt 0:00:02]} Nxg3 {[%emt 0:00:18]} 37. Kxg3 {[%emt 0:03:57]} Qg1+ {[%emt 0:
00:00]} 38. Qg2 {[%emt 0:02:00]} Qxc1 {[%emt 0:00:07]} 39. Qf2 {[%emt 0:00:52]}
Qh1 {[%emt 0:02:08]} 40. Kg4 {[%emt 0:00:35]} Bxh4 {[%emt 0:01:28]} 41. Qxh4 {
[%emt 0:01:24]} Qg2+ {[%emt 0:00:11]} 42. Qg3 {[%emt 0:01:10]} h5+ {[%emt 0:00:
00]} 43. Kh4 {[%emt 0:01:29]} g5+ {[%emt 0:00:10]} 0-1

[Event "44th Chess Olympiad Open 2022"]
[Site "Chennai"]
[Date "2022.08.02"]
[Round "5.62"]
[White "Winter Atwell, Adrian"]
[Black "Mafnas, Peter"]
[Result "1-0"]
[WhiteElo "2250"]
[BlackElo "2039"]
[Annotator "NA RC"]
[PlyCount "37"]
[EventDate "2022.??.??"]
[TimeControl "60"]

1. e4 {[%emt 0:00:29]} c6 {[%emt 0:00:13]} 2. d4 {[%emt 0:00:17]} d5 {[%emt 0:
00:00]} 3. e5 {[%emt 0:00:21]} Bf5 {[%emt 0:00:17]} 4. Nf3 {[%emt 0:00:30]} e6
{[%emt 0:00:15]} 5. Be2 {[%emt 0:00:34]} c5 {[%emt 0:00:27]} 6. c4 {[%emt 0:00:
00]} cxd4 {[%emt 0:08:45]} 7. Nxd4 {[%emt 0:01:13]} Bb4+ {[%emt 0:03:33]} 8.
Nc3 {[%emt 0:01:11]} Bxc3+ {[%emt 0:00:32]} 9. bxc3 {[%emt 0:00:16]} Ne7 {
[%emt 0:01:33]} 10. g4 {[%emt 0:08:29]} Bg6 {[%emt 0:01:27]} 11. h4 {[%emt 0:
00:00]} h6 {[%emt 0:00:45]} 12. h5 {[%emt 0:00:34]} Bh7 {[%emt 0:00:22]} 13.
Nb5 {[%emt 0:00:18]} O-O {[%emt 0:04:51]} 14. g5 {[%emt 0:00:23]} Nf5 {[%emt 0:
00:00]} 15. gxh6 {[%emt 0:01:02]} gxh6 {[%emt 0:02:25]} 16. Bg4 {[%emt 0:02:25]
} a6 {[%emt 0:01:34]} 17. Bxf5 {[%emt 0:02:01]} Bxf5 {[%emt 0:00:06]} 18. Rg1+
{[%emt 0:01:52]} Bg6 {[%emt 0:01:33]} 19. hxg6 {[%emt 0:04:07]} 1-0

[Event "44th Chess Olympiad Open 2022"]
[Site "Chennai"]
[Date "2022.08.02"]
[Round "5.62"]
[White "Johnson, Joshua"]
[Black "Soriano, Rudolph P."]
[Result "1-0"]
[WhiteElo "2178"]
[BlackElo "1824"]
[Annotator "NA RC"]
[PlyCount "81"]
[EventDate "2022.??.??"]
[TimeControl "60"]

1. e4 {[%emt 0:00:03]} Nc6 {[%emt 0:00:14]} 2. Nf3 {[%emt 0:00:08]} e5 {
[%emt 0:00:42]} 3. Bc4 {[%emt 0:02:01]} Bc5 {[%emt 0:00:18]} 4. c3 {[%emt 0:00:
00]} Nf6 {[%emt 0:00:58]} 5. d4 {[%emt 0:01:40]} exd4 {[%emt 0:00:24]} 6. e5 {
[%emt 0:00:08]} d5 {[%emt 0:00:36]} 7. Bb5 {[%emt 0:00:10]} Ne4 {[%emt 0:00:45]
} 8. cxd4 {[%emt 0:00:05]} Bb4+ {[%emt 0:00:32]} 9. Bd2 {[%emt 0:01:22]} Qe7 {
[%emt 0:02:27]} 10. O-O {[%emt 0:07:30]} O-O {[%emt 0:00:53]} 11. a3 {[%emt 0:
00:00]} Nxd2 {[%emt 0:01:00]} 12. Nbxd2 {[%emt 0:00:15]} Ba5 {[%emt 0:00:22]}
13. Qa4 {[%emt 0:09:09]} Bb6 {[%emt 0:07:21]} 14. Bxc6 {[%emt 0:01:08]} bxc6 {
[%emt 0:00:41]} 15. Qxc6 {[%emt 0:00:32]} Be6 {[%emt 0:00:37]} 16. h3 {[%emt 0:
00:00]} h6 {[%emt 0:00:33]} 17. Rad1 {[%emt 0:04:19]} Rab8 {[%emt 0:00:39]} 18.
Rfe1 {[%emt 0:01:02]} Rfd8 {[%emt 0:00:31]} 19. Rc1 {[%emt 0:03:01]} a5 {
[%emt 0:03:35]} 20. Re3 {[%emt 0:01:12]} Kh8 {[%emt 0:05:50]} 21. Nf1 {[%emt 0:
00:00]} Kh7 {[%emt 0:04:08]} 22. Ng3 {[%emt 0:00:45]} g6 {[%emt 0:00:50]} 23.
Ne2 {[%emt 0:03:52]} Kg7 {[%emt 0:02:53]} 24. Nf4 {[%emt 0:00:46]} Rd7 {
[%emt 0:02:37]} 25. Kh2 {[%emt 0:01:38]} Ba7 {[%emt 0:01:04]} 26. Re2 {[%emt 0:
00:00]} Rb3 {[%emt 0:02:25]} 27. Qa4 {[%emt 0:05:39]} Rxf3 {[%emt 0:04:02]} 28.
gxf3 {[%emt 0:01:16]} Bf5 {[%emt 0:00:40]} 29. Rg1 {[%emt 0:02:15]} Qh4 {
[%emt 0:00:47]} 30. Rg4 {[%emt 0:00:05]} Bxg4 {[%emt 0:02:18]} 31. fxg4 {
[%emt 0:00:51]} Rd8 {[%emt 0:01:08]} 32. Qxa5 {[%emt 0:12:06]} Bb6 {[%emt 0:00:
00]} 33. Qc3 {[%emt 0:01:21]} h5 {[%emt 0:01:31]} 34. e6 {[%emt 0:02:54]} Qf6 {
[%emt 0:01:24]} 35. Nxd5 {[%emt 0:00:55]} Rxd5 {[%emt 0:03:52]} 36. e7 {
[%emt 0:00:07]} Kh7 {[%emt 0:05:01]} 37. e8=Q {[%emt 0:00:42]} Bxd4 {[%emt 0:
00:00]} 38. Qxc7 {[%emt 0:00:47]} Kg7 {[%emt 0:02:24]} 39. Qcb8 {[%emt 0:00:24]
} Qd6+ {[%emt 0:00:56]} 40. Qxd6 {[%emt 0:00:10]} Rxd6 {[%emt 0:00:26]} 41. Rd2
{[%emt 0:30:16]} 1-0

[Event "44th Chess Olympiad Open 2022"]
[Site "Chennai"]
[Date "2022.08.02"]
[Round "5.62"]
[White "Prudente, Elmer"]
[Black "Harper, Ryan"]
[Result "0-1"]
[WhiteElo "1995"]
[BlackElo "2208"]
[Annotator "NA RC"]
[PlyCount "70"]
[EventDate "2022.??.??"]
[TimeControl "60"]

1. e4 {[%emt 0:00:06]} c5 {[%emt 0:00:04]} 2. Nf3 {[%emt 0:00:06]} e6 {[%emt 0:
00:00]} 3. d4 {[%emt 0:00:30]} cxd4 {[%emt 0:00:05]} 4. Nxd4 {[%emt 0:00:02]}
a6 {[%emt 0:00:07]} 5. c4 {[%emt 0:01:19]} Qc7 {[%emt 0:00:08]} 6. Nc3 {
[%emt 0:00:35]} Nf6 {[%emt 0:00:25]} 7. Bg5 {[%emt 0:00:45]} h6 {[%emt 0:03:13]
} 8. Bxf6 {[%emt 0:05:52]} gxf6 {[%emt 0:00:10]} 9. Be2 {[%emt 0:00:12]} Bd6 {
[%emt 0:01:49]} 10. g3 {[%emt 0:01:03]} Nc6 {[%emt 0:02:53]} 11. O-O {[%emt 0:
00:00]} Be5 {[%emt 0:08:20]} 12. Nc2 {[%emt 0:04:23]} Qa5 {[%emt 0:05:46]} 13.
Qd3 {[%emt 0:03:10]} h5 {[%emt 0:02:53]} 14. h4 {[%emt 0:01:22]} Nb4 {[%emt 0:
00:00]} 15. Nxb4 {[%emt 0:05:12]} Qxb4 {[%emt 0:00:57]} 16. f4 {[%emt 0:00:13]}
Bxc3 {[%emt 0:01:43]} 17. bxc3 {[%emt 0:00:09]} Qc5+ {[%emt 0:00:42]} 18. Kh2 {
[%emt 0:00:12]} d6 {[%emt 0:03:26]} 19. Rad1 {[%emt 0:09:29]} Ke7 {[%emt 0:00:
00]} 20. Rd2 {[%emt 0:04:49]} a5 {[%emt 0:10:03]} 21. Bf3 {[%emt 0:03:27]} Bd7
{[%emt 0:12:00]} 22. e5 {[%emt 0:20:46]} fxe5 {[%emt 0:00:07]} 23. fxe5 {
[%emt 0:00:10]} Qxe5 {[%emt 0:00:07]} 24. Bxb7 {[%emt 0:00:46]} Rab8 {[%emt 0:
00:00]} 25. Re2 {[%emt 0:00:43]} Qc5 {[%emt 0:00:18]} 26. Rf5 {[%emt 0:00:14]}
Qa3 {[%emt 0:00:06]} 27. c5 {[%emt 0:02:35]} Rxb7 {[%emt 0:01:38]} 28. Qxd6+ {
[%emt 0:00:03]} Ke8 {[%emt 0:02:51]} 29. Rxf7 {[%emt 0:00:04]} Kxf7 {[%emt 0:
00:00]} 30. Rf2+ {[%emt 0:00:02]} Ke8 {[%emt 0:00:20]} 31. Qe5 {[%emt 0:01:39]}
Rg8 {[%emt 0:03:50]} 32. Qxh5+ {[%emt 0:00:33]} Kd8 {[%emt 0:00:15]} 33. Qf7 {
[%emt 0:03:01]} Re8 {[%emt 0:00:28]} 34. c6 {[%emt 0:00:24]} Bxc6 {[%emt 0:00:
00]} 35. Rd2+ {[%emt 0:00:01]} Bd7 {[%emt 0:00:36]} 0-1

[Event "44th Chess Olympiad Open 2022"]
[Site "Chennai"]
[Date "2022.08.02"]
[Round "5.62"]
[White "Estur, Gavino Aguilar"]
[Black "Mc Intosh, Isaiah"]
[Result "0-1"]
[WhiteElo "1598"]
[BlackElo "2215"]
[Annotator "NA RC"]
[PlyCount "64"]
[EventDate "2022.??.??"]
[TimeControl "60"]

1. e4 {[%emt 0:00:15]} c5 {[%emt 0:00:08]} 2. Nc3 {[%emt 0:00:35]} Nc6 {
[%emt 0:00:05]} 3. Bc4 {[%emt 0:01:04]} g6 {[%emt 0:00:12]} 4. d3 {[%emt 0:00:
00]} Bg7 {[%emt 0:00:20]} 5. Nge2 {[%emt 0:01:54]} e6 {[%emt 0:01:55]} 6. O-O {
[%emt 0:00:32]} Nge7 {[%emt 0:00:19]} 7. a3 {[%emt 0:02:25]} O-O {[%emt 0:00:
00]} 8. Rb1 {[%emt 0:02:08]} d5 {[%emt 0:10:15]} 9. exd5 {[%emt 0:01:52]} exd5
{[%emt 0:00:13]} 10. Bb3 {[%emt 0:07:20]} h6 {[%emt 0:10:22]} 11. Bf4 {[%emt 0:
00:00]} Be6 {[%emt 0:03:05]} 12. Qd2 {[%emt 0:08:43]} g5 {[%emt 0:07:11]} 13.
Bg3 {[%emt 0:01:35]} Nf5 {[%emt 0:00:09]} 14. Nb5 {[%emt 0:08:38]} a6 {[%emt 0:
00:00]} 15. Nbc3 {[%emt 0:00:56]} b5 {[%emt 0:00:43]} 16. Nd1 {[%emt 0:08:16]}
c4 {[%emt 0:06:20]} 17. Ba2 {[%emt 0:00:57]} d4 {[%emt 0:03:20]} 18. b3 {
[%emt 0:07:33]} c3 {[%emt 0:03:29]} 19. Qc1 {[%emt 0:01:38]} h5 {[%emt 0:01:05]
} 20. h3 {[%emt 0:04:41]} Re8 {[%emt 0:02:06]} 21. Re1 {[%emt 0:01:01]} Bd5 {
[%emt 0:00:50]} 22. Ra1 {[%emt 0:01:07]} b4 {[%emt 0:00:20]} 23. Ndxc3 {
[%emt 0:10:32]} dxc3 {[%emt 0:00:51]} 24. Qd1 {[%emt 0:01:46]} a5 {[%emt 0:00:
00]} 25. Bb1 {[%emt 0:02:35]} Ra7 {[%emt 0:00:16]} 26. Nc1 {[%emt 0:00:43]}
Rxe1+ {[%emt 0:00:57]} 27. Qxe1 {[%emt 0:00:13]} Re7 {[%emt 0:00:04]} 28. Qd1 {
[%emt 0:03:52]} Nxg3 {[%emt 0:00:35]} 29. fxg3 {[%emt 0:00:16]} Qb6+ {[%emt 0:
00:00]} 30. Kf1 {[%emt 0:02:58]} Qe3 {[%emt 0:00:19]} 31. Ne2 {[%emt 0:00:44]}
Nd4 {[%emt 0:00:29]} 32. Ng1 {[%emt 0:01:52]} Qxg3 {[%emt 0:00:35]} 0-1

[Event "44th Chess Olympiad Open 2022"]
[Site "Chennai"]
[Date "2022.08.02"]
[Round "5.63"]
[White "Alfaro, William"]
[Black "Hashem, Khaled"]
[Result "1-0"]
[WhiteElo "2155"]
[BlackElo "1870"]
[Annotator "NA RC"]
[PlyCount "71"]
[EventDate "2022.??.??"]
[TimeControl "60"]

1. d4 {[%emt 0:00:05]} d5 {[%emt 0:00:05]} 2. c4 {[%emt 0:00:05]} c6 {[%emt 0:
00:00]} 3. Nf3 {[%emt 0:00:04]} Nf6 {[%emt 0:00:04]} 4. Qc2 {[%emt 0:00:47]} e6
{[%emt 0:01:00]} 5. g3 {[%emt 0:00:10]} Be7 {[%emt 0:02:42]} 6. Bg2 {[%emt 0:
00:00]} O-O {[%emt 0:01:19]} 7. O-O {[%emt 0:00:00]} b6 {[%emt 0:00:18]} 8.
Nbd2 {[%emt 0:02:16]} Bb7 {[%emt 0:00:11]} 9. e4 {[%emt 0:00:26]} dxc4 {
[%emt 0:06:54]} 10. Nxc4 {[%emt 0:00:57]} c5 {[%emt 0:01:12]} 11. e5 {[%emt 0:
00:00]} Nd5 {[%emt 0:07:31]} 12. dxc5 {[%emt 0:03:31]} bxc5 {[%emt 0:07:54]}
13. Rd1 {[%emt 0:05:22]} Nd7 {[%emt 0:04:27]} 14. h4 {[%emt 0:14:18]} h6 {
[%emt 0:03:52]} 15. Bd2 {[%emt 0:02:24]} Rb8 {[%emt 0:03:52]} 16. Qe4 {[%emt 0:
00:00]} Nc3 {[%emt 0:27:59]} 17. Qg4 {[%emt 0:00:24]} h5 {[%emt 0:06:26]} 18.
Qxh5 {[%emt 0:00:06]} Nxd1 {[%emt 0:00:28]} 19. Rxd1 {[%emt 0:06:00]} Be4 {
[%emt 0:03:00]} 20. Ng5 {[%emt 0:06:31]} Bg6 {[%emt 0:00:32]} 21. Qe2 {[%emt 0:
00:00]} Bc2 {[%emt 0:04:09]} 22. Rc1 {[%emt 0:00:53]} Bg6 {[%emt 0:00:35]} 23.
Ne4 {[%emt 0:06:04]} Qc8 {[%emt 0:05:15]} 24. Ned6 {[%emt 0:02:30]} Qa6 {
[%emt 0:01:11]} 25. h5 {[%emt 0:04:25]} Bh7 {[%emt 0:02:00]} 26. h6 {[%emt 0:
00:00]} Bg6 {[%emt 0:00:39]} 27. Be4 {[%emt 0:00:06]} Nxe5 {[%emt 0:05:24]} 28.
hxg7 {[%emt 0:09:21]} Kxg7 {[%emt 0:01:42]} 29. Bc3 {[%emt 0:08:48]} Bxd6 {
[%emt 0:01:14]} 30. Bxg6 {[%emt 0:01:21]} fxg6 {[%emt 0:00:20]} 31. Rd1 {
[%emt 0:00:47]} Kh7 {[%emt 0:00:39]} 32. Rxd6 {[%emt 0:01:09]} Qxc4 {[%emt 0:
00:00]} 33. Qxe5 {[%emt 0:00:02]} Rb7 {[%emt 0:00:42]} 34. Rxe6 {[%emt 0:01:03]
} Rbf7 {[%emt 0:01:06]} 35. Qg5 {[%emt 0:01:54]} a5 {[%emt 0:01:28]} 36. Qxg6#
{[%emt 0:00:47]} 1-0

[Event "44th Chess Olympiad Open 2022"]
[Site "Chennai"]
[Date "2022.08.02"]
[Round "5.63"]
[White "Salazar Cabezas, Alberto Javier"]
[Black "Alhejab, Meshal"]
[Result "1-0"]
[WhiteElo "2155"]
[BlackElo "1732"]
[Annotator "NA RC"]
[PlyCount "53"]
[EventDate "2022.??.??"]
[TimeControl "60"]

1. Nf3 {[%emt 0:00:03]} Nf6 {[%emt 0:00:14]} 2. c4 {[%emt 0:00:03]} e6 {
[%emt 0:00:21]} 3. g3 {[%emt 0:00:03]} d5 {[%emt 0:00:16]} 4. Bg2 {[%emt 0:00:
00]} c5 {[%emt 0:01:26]} 5. O-O {[%emt 0:00:41]} Nc6 {[%emt 0:00:35]} 6. d4 {
[%emt 0:00:52]} Bd6 {[%emt 0:07:14]} 7. cxd5 {[%emt 0:02:04]} exd5 {[%emt 0:00:
00]} 8. Nc3 {[%emt 0:00:08]} b6 {[%emt 0:03:32]} 9. Bg5 {[%emt 0:03:37]} Ne7 {
[%emt 0:12:14]} 10. Bxf6 {[%emt 0:14:03]} gxf6 {[%emt 0:01:23]} 11. dxc5 {
[%emt 0:00:03]} Bxc5 {[%emt 0:00:51]} 12. b4 {[%emt 0:00:38]} Bd6 {[%emt 0:00:
00]} 13. Nxd5 {[%emt 0:00:17]} Nxd5 {[%emt 0:00:23]} 14. Qxd5 {[%emt 0:00:08]}
Be6 {[%emt 0:00:16]} 15. Qc6+ {[%emt 0:00:50]} Ke7 {[%emt 0:01:05]} 16. Nd4 {
[%emt 0:10:35]} Rc8 {[%emt 0:00:42]} 17. Rad1 {[%emt 0:05:05]} Qd7 {[%emt 0:00:
00]} 18. Qe4 {[%emt 0:07:58]} Kf8 {[%emt 0:07:05]} 19. Nxe6+ {[%emt 0:03:33]}
fxe6 {[%emt 0:00:08]} 20. Rd4 {[%emt 0:00:54]} e5 {[%emt 0:07:53]} 21. Rd3 {
[%emt 0:00:59]} Qc7 {[%emt 0:17:21]} 22. Rfd1 {[%emt 0:01:28]} Rd8 {[%emt 0:00:
00]} 23. Qf5 {[%emt 0:06:30]} Kg7 {[%emt 0:08:48]} 24. Qg4+ {[%emt 0:01:43]}
Kf8 {[%emt 0:00:43]} 25. Qe6 {[%emt 0:00:23]} Qe7 {[%emt 0:00:50]} 26. Qc4 {
[%emt 0:00:14]} Kg7 {[%emt 0:00:27]} 27. Qc6 {[%emt 0:00:24]} 1-0

[Event "44th Chess Olympiad Open 2022"]
[Site "Chennai"]
[Date "2022.08.02"]
[Round "5.63"]
[White "Al Ibrahim, Abdulrahman"]
[Black "Espinoza Solano, Jose Nahum"]
[Result "0-1"]
[WhiteElo "1822"]
[BlackElo "2093"]
[Annotator "NA RC"]
[PlyCount "106"]
[EventDate "2022.??.??"]
[TimeControl "60"]

1. d4 {[%emt 0:00:03]} Nf6 {[%emt 0:00:21]} 2. c4 {[%emt 0:00:07]} g6 {[%emt 0:
00:00]} 3. Nc3 {[%emt 0:00:05]} Bg7 {[%emt 0:00:08]} 4. Nf3 {[%emt 0:00:12]} d6
{[%emt 0:00:15]} 5. Bf4 {[%emt 0:00:44]} Nbd7 {[%emt 0:01:20]} 6. e3 {[%emt 0:
00:00]} O-O {[%emt 0:00:46]} 7. Be2 {[%emt 0:01:20]} b6 {[%emt 0:00:12]} 8. h3
{[%emt 0:02:49]} Bb7 {[%emt 0:00:19]} 9. Qc2 {[%emt 0:02:31]} e5 {[%emt 0:00:
00]} 10. Bh2 {[%emt 0:01:41]} Re8 {[%emt 0:06:21]} 11. d5 {[%emt 0:07:51]} a5 {
[%emt 0:00:32]} 12. O-O {[%emt 0:00:56]} Nc5 {[%emt 0:00:18]} 13. b3 {[%emt 0:
00:00]} Nh5 {[%emt 0:01:48]} 14. Rac1 {[%emt 0:09:19]} f5 {[%emt 0:00:57]} 15.
a3 {[%emt 0:00:39]} f4 {[%emt 0:02:26]} 16. e4 {[%emt 0:07:10]} Bf6 {[%emt 0:
00:00]} 17. b4 {[%emt 0:01:21]} Nd7 {[%emt 0:01:10]} 18. Rfd1 {[%emt 0:00:38]}
Ng7 {[%emt 0:00:26]} 19. Nd2 {[%emt 0:02:36]} h5 {[%emt 0:01:01]} 20. Nb3 {
[%emt 0:01:55]} axb4 {[%emt 0:00:51]} 21. axb4 {[%emt 0:00:10]} Be7 {[%emt 0:
00:00]} 22. Nb5 {[%emt 0:00:53]} Kh7 {[%emt 0:03:31]} 23. Ra1 {[%emt 0:09:12]}
g5 {[%emt 0:04:37]} 24. Rxa8 {[%emt 0:09:13]} Bxa8 {[%emt 0:00:06]} 25. Ra1 {
[%emt 0:00:53]} Bb7 {[%emt 0:00:25]} 26. Qa2 {[%emt 0:03:19]} Rg8 {[%emt 0:00:
00]} 27. Qc2 {[%emt 0:09:25]} Kh6 {[%emt 0:02:09]} 28. Kf1 {[%emt 0:00:21]} Ne8
{[%emt 0:00:22]} 29. f3 {[%emt 0:01:22]} Nef6 {[%emt 0:00:49]} 30. Bg1 {
[%emt 0:00:47]} g4 {[%emt 0:02:21]} 31. hxg4 {[%emt 0:00:24]} hxg4 {[%emt 0:00:
00]} 32. c5 {[%emt 0:02:48]} bxc5 {[%emt 0:03:55]} 33. bxc5 {[%emt 0:00:30]}
gxf3 {[%emt 0:13:13]} 34. Bxf3 {[%emt 0:00:09]} dxc5 {[%emt 0:02:02]} 35. Nxc5
{[%emt 0:00:08]} Nxc5 {[%emt 0:00:45]} 36. Bxc5 {[%emt 0:00:08]} Bxc5 {[%emt 0:
00:00]} 37. Qxc5 {[%emt 0:00:05]} Ng4 {[%emt 0:00:21]} 38. Bxg4 {[%emt 0:02:57]
} Rxg4 {[%emt 0:00:27]} 39. Qxc7 {[%emt 0:05:18]} Qh4 {[%emt 0:00:23]} 40. Qb6+
{[%emt 0:02:54]} Rg6 {[%emt 0:00:25]} 41. Qf2 {[%emt 0:32:25]} Qh1+ {[%emt 0:
00:00]} 42. Qg1 {[%emt 0:00:31]} Qh5 {[%emt 0:00:02]} 43. Ke1 {[%emt 0:12:58]}
Qh3 {[%emt 0:04:00]} 44. Ra3 {[%emt 0:00:00]} Qh4+ {[%emt 0:00:00]} 45. Kd2 {
[%emt 0:00:00]} Qe7 {[%emt 0:00:00]} 46. Rh3+ {[%emt 0:00:00]} Kg7 {[%emt 0:00:
00]} 47. Nc3 {[%emt 0:00:00]} Bc8 {[%emt 0:00:00]} 48. Rh2 {[%emt 0:00:00]} Qa3
{[%emt 0:00:00]} 49. Qb1 {[%emt 0:00:00]} Rg3 {[%emt 0:00:00]} 50. Qc2 {
[%emt 0:00:00]} Ba6 {[%emt 0:00:00]} 51. Ne2 {[%emt 0:00:00]} Qa5+ {[%emt 0:00:
00]} 52. Kd1 {[%emt 0:00:00]} Rd3+ {[%emt 0:00:00]} 53. Kc1 {[%emt 0:00:00]}
Qa1+ {[%emt 0:00:00]} 0-1